fUSD/lending_fUSD_20240223
["ID","MTS","AMOUNT","RATE_DAILY","PERIOD"]
[314928124,1708675838618,-150.0,0.00027,2]
[314928125,1708675838627,-502.03619067,0.00027,2]
[314928126,1708675838637,-150.0,0.00027,2]
[314928128,1708675838646,-150.0,0.00027,2]
[314928129,1708675838655,-503.38116168,0.00027,2]
[314928131,1708675838664,-167.14,0.00027002,2]
[314928133,1708675838673,-150.64,0.00027028,2]
[314928136,1708675838683,-1807.9,0.00027032,2]
[314928137,1708675838692,-158.82995846,0.00027147,2]
[314928139,1708675838701,-150.64,0.00027196,2]
[314928141,1708675838710,-257.00962992,0.00027297,2]
[314928143,1708675838720,-150.64,0.00027364,2]
[314928146,1708675838729,-157.05,0.00027376,2]
[314928148,1708675838739,-1000.0,0.00027395,2]
[314928150,1708675838748,-230.58774355,0.00027396,2]
[314928152,1708675838757,-3049.23440343,0.00027396,2]
[314928154,1708675838766,-155.0,0.00027397,2]
[314928156,1708675838774,-150.66413202,0.00027397,2]
[314928158,1708675838784,-3000.0,0.00027397,2]
[314928159,1708675838794,-3000.0,0.00027397,2]
[314928160,1708675838803,-3000.0,0.00027397,2]
[314928161,1708675838813,-3000.0,0.00027397,2]
[314928162,1708675838825,-3000.0,0.00027397,2]
[314928163,1708675838834,-3000.0,0.00027397,2]
[314928164,1708675838843,-3000.0,0.00027397,2]
[314928165,1708675838852,-3000.0,0.00027397,2]
[314928166,1708675838861,-3000.0,0.00027397,2]
[314928167,1708675838871,-3000.0,0.00027397,2]
[314928168,1708675838880,-3000.0,0.00027397,2]
[314928169,1708675838888,-3000.0,0.00027397,2]
[314928170,1708675838898,-3000.0,0.00027397,2]
[314928171,1708675838907,-3000.0,0.00027397,2]
[314928172,1708675838917,-3000.0,0.00027397,2]
[314928173,1708675838926,-3000.0,0.00027397,2]
[314928174,1708675838935,-3000.0,0.00027397,2]
[314928175,1708675838945,-3000.0,0.00027397,2]
[314928176,1708675838954,-4704.1380203,0.00027397,2]
[314928177,1708675838963,-2275.65,0.00027397,2]
[314928178,1708675838972,-158.82995846,0.00027398,2]
[314928179,1708675838982,-375.0,0.000274,2]
[314928180,1708675838991,-150.64,0.00027532,2]
[314928181,1708675839000,-177.74,0.00027547,2]
[314928182,1708675839009,-150.0,0.00027548,2]
[314928183,1708675839018,-31802.46138892,0.00027549,2]
[314928184,1708675839027,-2275.65,0.00027556,2]
[314928185,1708675839037,-155.0,0.00027597,2]
[314928186,1708675839047,-1911.93134637,0.00027597,2]
[314928187,1708675839056,-155.4789899,0.00027598,2]
[314928188,1708675839066,-2307.56516392,0.00027598,2]
[314928189,1708675839075,-257.00962991,0.00027598,2]
[314928190,1708675839085,-119909.34083623,0.000276,2]
[314928191,1708675839094,-158.82995846,0.00027649,2]
[314928192,1708675839103,-225.01,0.00027684,2]
[314928193,1708675839113,-150.64,0.000277,2]
[314928194,1708675839123,-1691.0472,0.000277,2]
[314928195,1708675839155,-11432.7335,0.000277,2]
[314928196,1708675839164,-2275.65,0.00027714,2]
[314928197,1708675839174,-1017.41766458,0.00027768,3]
[314928198,1708675839184,-21597.8665,0.000278,2]
[314928199,1708675839193,-150.64,0.00027868,2]
[314928200,1708675839202,-2275.65,0.00027872,2]
[314928201,1708675839211,-500.0,0.00027899,2]
[314928202,1708675839221,-470.6261,0.00027899,2]
[314928203,1708675839230,-200.86222414,0.00027899,2]
[314928204,1708675839239,-198.55311008,0.00027899,2]
[314928205,1708675839248,-257.00962991,0.00027899,2]
[314928206,1708675839257,-198.55311004,0.00027899,2]
[314928207,1708675839267,-198.55311004,0.000279,2]
[314928208,1708675839582,-198.55311004,0.000279,2]
[314928209,1708675839592,-1000.0,0.000279,2]
[314928210,1708675839601,-45064.2557,0.000279,2]
[314928211,1708675839611,-168.3332626,0.000279,2]
[314928212,1708675839620,-3014.5328197,0.000279,2]
[314928213,1708675839630,-158.82995846,0.000279,2]
[314928214,1708675839639,-220.05427419,0.000279,5]
[314928215,1708675839648,-3425.72031617,0.000279,2]
[314928216,1708675839658,-903.57311344,0.000279,2]
[314928217,1708675839667,-2325.30792973,0.000279,2]
[314928218,1708675839676,-198.55311004,0.000279,2]
[314928219,1708675839685,-1431.17751853,0.000279,2]
[314928220,1708675839694,-206.17069956,0.000279,2]
[314928221,1708675839703,-392.11426566,0.00027915,14]
[314928222,1708675839713,-5123.36454713,0.00027934,2]
[314928223,1708675839722,-167.13035012,0.00027989,2]
[314928224,1708675839731,-167.13035012,0.0002799,2]
[314928225,1708675839740,-167.13035012,0.0002799,2]
[314928226,1708675839750,-500.0,0.00027998,2]
[314928227,1708675839759,-500.0,0.00027998,2]
[314928228,1708675839770,-500.0,0.00027998,2]
[314928229,1708675839779,-500.0,0.00027998,2]
[314928230,1708675839788,-500.0,0.00027998,2]
[314928231,1708675839799,-500.0,0.00027998,2]
[314928232,1708675839809,-438.6263835,0.00027998,2]
[314928233,1708675839819,-176.9049477,0.00027998,2]
[314928234,1708675839831,-299.70416481,0.00027998,2]
[314928235,1708675839840,-681741.69030669,0.00027999,4]
[314928236,1708675839850,-150000.0,0.00027999,2]
[314928237,1708675839859,-150000.0,0.00027999,2]
[314928238,1708675839869,-150000.0,0.00027999,2]
[314928239,1708675839878,-150000.0,0.00027999,2]
[314928240,1708675839888,-107726.89269631,0.00027999,2]
[314928241,1708675839897,-345.88326893,0.00027999,15]
[314928242,1708675839907,-345.88326893,0.00027999,15]
[314928243,1708675839917,-345.88326893,0.00027999,15]
[314928244,1708675839926,-818900.24103033,0.00028,2]
[314928245,1708675839941,-147928.2209015,0.00028,2]
[314928246,1708675839950,-872.49031612,0.00028,2]
[314928247,1708675839960,-324504.95639717,0.00028,2]
[314928248,1708675839970,-630.23,0.00028015,2]
[314928249,1708675839980,-2275.65,0.0002803,2]
[314928250,1708675839989,-150.64,0.00028036,2]
[314928251,1708675839999,-1017.41766452,0.00028055,3]
[314928252,1708675840008,-177.74,0.00028095,2]
[314928253,1708675840017,-17608.48,0.00028132,2]
[314928254,1708675840027,-17608.48,0.00028132,2]
[314928255,1708675840038,-17608.48,0.00028132,2]
[314928256,1708675840048,-17608.48,0.00028132,2]
[314928257,1708675840058,-17608.48,0.00028132,2]
[314928258,1708675840068,-17608.48,0.00028132,2]
[314928259,1708675840078,-17608.48,0.00028132,2]
[314928260,1708675840087,-17608.48,0.00028132,2]
[314928261,1708675840097,-17608.48,0.00028132,2]
[314928262,1708675840106,-17608.48,0.00028132,2]
[314928263,1708675840116,-17608.48,0.00028132,2]
[314928264,1708675840126,-17608.48,0.00028132,2]
[314928265,1708675840135,-17608.48,0.00028132,2]
[314928266,1708675840144,-17608.48,0.00028132,2]
[314928267,1708675840154,-17608.48,0.00028132,2]
[314928268,1708675840163,-17608.60908802,0.00028132,2]
[314928269,1708675840173,-420.0,0.00028181,2]
[314928270,1708675840182,-2275.65,0.00028189,2]
[314928271,1708675840192,-31802.46138885,0.00028191,2]
[314928272,1708675840202,-150.64,0.00028204,2]
[314928273,1708675840213,-5123.36454706,0.00028251,2]
[314928274,1708675840222,-84282.86135786,0.00028266,2]
[314928275,1708675840235,-35626.47947828,0.00028266,2]
[314928276,1708675840244,-345.88326893,0.00028333,15]
[314928277,1708675840254,-345.88326893,0.00028333,15]
[314928278,1708675840264,-13129.6014,0.00028334,2]
[314928279,1708675840273,-100000.0,0.00028334,2]
[314928280,1708675840282,-151.0,0.00028334,7]
[314928281,1708675840292,-181.739278,0.00028334,7]
[314928282,1708675840301,-151.0,0.00028334,7]
[314928283,1708675840310,-151.0,0.00028334,7]
[314928284,1708675840319,-151.0,0.00028334,7]
[314928285,1708675840328,-151.0,0.00028334,7]
[314928286,1708675840338,-151.0,0.00028334,7]
[314928287,1708675840347,-256.253229,0.00028334,7]
[314928288,1708675840356,-151.0,0.00028334,7]
[314928289,1708675840365,-256.253229,0.00028334,7]
[314928290,1708675840375,-151.0,0.00028334,7]
[314928291,1708675840384,-1017.41766452,0.00028343,4]
[314928292,1708675840393,-2275.65,0.00028347,2]
[314928293,1708675840402,-150.64,0.00028371,2]
[314928294,1708675840411,-392.11426566,0.00028381,14]
[314928295,1708675840420,-500.0,0.00028498,2]
[314928296,1708675840430,-319.71648578,0.00028498,2]
[314928297,1708675840439,-440.07941601,0.00028498,2]
[314928298,1708675840449,-468.67279025,0.00028498,2]
[314928299,1708675840458,-470.16409527,0.00028498,2]
[314928300,1708675840468,-492.26000962,0.00028498,2]
[314928301,1708675840478,-439.20733533,0.00028498,2]
[314928302,1708675840487,-500.0,0.00028498,2]
[314928303,1708675840496,-643.40850113,0.00028498,2]
[314928304,1708675840505,-102668.52532558,0.00028499,2]
[314928305,1708675840557,-27275.03888584,0.00028499,2]
[314928306,1708675840570,-635.12169724,0.00028499,2]
[314928307,1708675840581,-14109.26600319,0.00028499,2]
[314928308,1708675840600,-444.70658547,0.00028499,2]
[314928309,1708675840635,-7525.10977238,0.00028499,2]
[314928310,1708675840646,-750.21506177,0.00028499,2]
[314928311,1708675840657,-741.27723955,0.00028499,2]
[314928312,1708675840668,-420.8888349,0.00028499,2]
[314928313,1708675840680,-313.89851893,0.00028499,2]
[314928314,1708675840691,-290.21242917,0.00028499,2]
[314928315,1708675841626,-247.018052,0.00028334,7]
[314928316,1708675841635,-151.0,0.00028334,7]
[314928317,1708675841645,-89825.73964598,0.00028499,2]
[314928318,1708675841654,-2275.65,0.00028505,2]
[314928319,1708675841664,-150.64,0.00028539,2]
[314928320,1708675841673,-190.89,0.00028545,2]
[314928321,1708675841682,-5123.36454706,0.00028569,2]
[314928322,1708675841691,-284.65781346,0.00028599,2]
[314928323,1708675841701,-164.49282446,0.000286,2]
[314928324,1708675841711,-1469.3176206,0.000286,2]
[314928325,1708675841720,-9750.0,0.000286,2]
[314928326,1708675841729,-1017.41766452,0.0002863,4]
[314928327,1708675841738,-177.74,0.00028643,2]
[314928328,1708675841747,-2275.65,0.00028664,2]
[314928329,1708675841757,-504.58,0.00028669,2]
[314928330,1708675841765,-150.64,0.00028707,2]
[314928331,1708675841775,-1748.43306136,0.00028764,7]
[314928332,1708675841784,-4396.17460418,0.00028764,7]
[314928333,1708675841859,-165.96769202,0.00028764,7]
[314928334,1708675841869,-1000.0,0.00028764,7]
[314928335,1708675841878,-1000.0,0.00028764,7]
[314928336,1708675841887,-1000.0,0.00028764,7]
[314928337,1708675841897,-155.0,0.00028767,2]
[314928338,1708675841906,-2275.65,0.00028822,2]
[314928339,1708675841915,-31802.46138885,0.00028832,2]
[314928340,1708675841924,-220.05427419,0.0002884,5]
[314928341,1708675841934,-3425.72031617,0.0002884,2]
[314928342,1708675841943,-903.57311344,0.0002884,2]
[314928343,1708675841952,-2325.30792973,0.0002884,2]
[314928344,1708675841962,-1431.17751852,0.0002884,2]
[314928345,1708675841971,-206.17069956,0.0002884,2]
[314928346,1708675841980,-392.11426566,0.00028848,15]
[314928347,1708675841990,-150.64,0.00028875,2]
[314928348,1708675841999,-5123.36454706,0.00028886,2]
[314928349,1708675842008,-1017.41766452,0.00028918,4]
[314928350,1708675842018,-14231.31386117,0.00028933,2]
[314928351,1708675842030,-10186.80018435,0.00028933,2]
[314928352,1708675842046,-461.17821812,0.00028933,2]
[314928353,1708675842057,-266.25083775,0.00028933,2]
[314928356,1708675843911,-1258.15975058,0.00028933,2]
[314928357,1708675843970,-9144.5028033,0.00028933,2]
[314928358,1708675843982,-4535.32487592,0.00028933,2]
[314928359,1708675844017,-2042.57299467,0.00028933,2]
[314928361,1708675844029,-790.59216382,0.00028933,2]
[314928363,1708675844042,-2864.08439039,0.00028933,2]
[314928365,1708675844054,-72144.85310168,0.00028933,2]
[314928367,1708675844065,-928.21337591,0.00028933,2]
[314928370,1708675844077,-421.25822633,0.00028933,2]
[314928372,1708675844088,-634.23605215,0.00028933,2]
[314928374,1708675844098,-670.49631654,0.0002898,2]
[314928376,1708675844109,-450.53539838,0.0002898,2]
[314928378,1708675844118,-10028.06460162,0.00029,2]
[314928387,1708675844207,-2459.53667299,0.00029,2]
[314928407,1708675846298,-1645.27710321,0.00029,2]
[314928409,1708675846309,-1288.38893741,0.00029,2]
[314928415,1708675846355,-844.0,0.00029,2]
[314928417,1708675846413,-1671.88625902,0.00029,2]
[314928418,1708675846425,-2447.84642575,0.00029,2]
[314928419,1708675846434,-2970.0,0.00029,2]
[314928420,1708675846444,-5779.19415946,0.00029,2]
[314928421,1708675846475,-370.09501176,0.00029,2]
[314928422,1708675846530,-9141.98082878,0.00029,2]
[314928423,1708675846539,-850.0,0.00029,3]
[314928424,1708675846549,-500.0,0.00029041,2]
[314928425,1708675846558,-150.64,0.00029043,2]
[314928426,1708675846567,-300.0,0.00029112,2]
[314928427,1708675846576,-300.0,0.00029112,2]
[314928428,1708675846586,-303.05778823,0.00029112,2]
[314928429,1708675846595,-458.0,0.00029122,2]
[314928430,1708675846604,-216.0,0.00029122,2]
[314928431,1708675846614,-1347.09752948,0.00029132,2]
[314928432,1708675846623,-354.38,0.00029191,2]
[314928433,1708675846632,-5543.703577,0.000292,2]
[314928434,1708675846641,-5123.36454706,0.00029203,2]
[314928435,1708675846650,-1017.41766452,0.00029205,4]
[314928436,1708675846659,-150.64,0.00029211,2]
[314928437,1708675846669,-157.92378669,0.00029233,2]
[314928438,1708675846679,-2476.19032079,0.00029244,2]
[314928439,1708675846689,-2476.19032079,0.00029256,2]
[314928440,1708675846698,-171.80334546,0.00029258,2]
[314928441,1708675846707,-407.43713482,0.00029258,2]
[314928442,1708675846717,-1901.86852625,0.00029258,2]
[314928443,1708675846726,-407.43713482,0.00029269,2]
[314928444,1708675846736,-66239.16389475,0.00029273,2]
[314928445,1708675846748,-14624.99999995,0.00029273,2]
[314928449,1708675846872,-16383.0985078,0.00029273,2]
[314928452,1708675846883,-3696.03882751,0.00029273,2]
[314928454,1708675846894,-882.82641225,0.00029273,2]
[314928458,1708675846929,-572.25085474,0.00029273,2]
[314928461,1708675846942,-1124.64079967,0.00029273,2]
[314928468,1708675924452,208.0,0.00023384,2]
[314928469,1708675927831,159.68,0.00022574,2]
[314928480,1708676374367,159.68,0.00021563,2]
[314928482,1708676802979,10000.0,0.000235,2]
[314928489,1708676949166,-202.4393114,0.00024499,2]
[314928490,1708676949188,-909.9620886,0.000245,2]
[314928504,1708677033684,-1049.28297181,0.00024045,2]
[314928505,1708677033693,-208.0,0.00024046,2]
[314928506,1708677033703,-366.64571885,0.000245,2]
[314928523,1708677037893,-874.11814733,0.000245,2]
[314928524,1708677037903,-750.0,0.00025,3]
[314928525,1708677037913,-526.06,0.00025017,2]
[314928526,1708677037922,-158.5434497,0.00025946,2]
[314928527,1708677037931,-165.0,0.00026049,2]
[314928528,1708677037941,-157.05,0.00026712,2]
[314928529,1708677037950,-2535.08,0.00026743,2]
[314928530,1708677037959,-177.74,0.00026743,2]
[314928531,1708677037969,-250.0,0.00026751,2]
[314928532,1708677037979,-153.0,0.00026871,2]
[314928533,1708677037988,-165.0,0.00026871,2]
[314928534,1708677037998,-499.99,0.00026933,2]
[314928535,1708677038008,-300.0,0.00026933,2]
[314928536,1708677038017,-11186.53,0.00026934,2]
[314928537,1708677038027,-2284.44,0.00026934,2]
[314928538,1708677038036,-360.0,0.00026934,2]
[314928539,1708677038046,-2000.0,0.00026936,2]
[314928540,1708677038055,-420.15,0.00026942,2]
[314928541,1708677038065,-640.0,0.00027002,2]
[314928542,1708677038074,-526.06,0.0002728,2]
[314928543,1708677038083,-355.26,0.00027291,2]
[314928544,1708677038092,-1007.72,0.00027397,2]
[314928545,1708677038102,-155.0,0.000274,2]
[314928546,1708677038111,-375.0,0.000274,2]
[314928547,1708677038120,-178.55,0.00027484,2]
[314928548,1708677038130,-8115.7882,0.000275,2]
[314928549,1708677038140,-1007.72,0.00027556,2]
[314928550,1708677038150,-1886.5,0.00027556,2]
[314928551,1708677038162,-1540.08,0.00027556,2]
[314928552,1708677038172,-158.15,0.00027675,2]
[314928554,1708677038182,-153.0,0.00027693,2]
[314928556,1708677038191,-165.0,0.00027693,2]
[314928557,1708677038201,-1007.72,0.00027714,2]
[314928558,1708677038211,-1353.58241711,0.00027719,2]
[314928559,1708677038220,-1007.72,0.00027872,2]
[314928560,1708677038230,-158.94,0.00027882,2]
[314928561,1708677038239,-187.98,0.00027928,2]
[314928562,1708677038249,-500.0,0.00027999,2]
[314928563,1708677038258,-1007.72,0.0002803,2]
[314928564,1708677038268,-208.0,0.00028041,8]
[314928565,1708677038277,-1353.58241711,0.0002806,2]
[314928566,1708677038287,-1007.72,0.00028189,2]
[314928567,1708677038297,-184.5091,0.000282,2]
[314928569,1708677038307,-500.0,0.00028273,2]
[314928570,1708677038316,-184.85,0.0002829,10]
[314928571,1708677038326,-154.04,0.0002829,10]
[314928572,1708677038336,-186.11982756,0.00028298,2]
[314928573,1708677038346,-1000.0,0.00028298,2]
[314928574,1708677038355,-85003.28625365,0.000283,2]
[314928575,1708677038364,-22471.81022256,0.000283,2]
[314928576,1708677038374,-188.70842586,0.000283,2]
[314928577,1708677038386,-436.23459536,0.000283,4]
[314928578,1708677038395,-1007.72,0.00028347,2]
[314928579,1708677038404,-279.72305705,0.0002839,2]
[314928580,1708677038413,-155.0,0.00028396,2]
[314928581,1708677038423,-324504.95639717,0.00028398,2]
[314928582,1708677038433,-83024.69187004,0.000284,2]
[314928583,1708677038477,-590.13408897,0.000284,2]
[314928584,1708677038498,-998.48704028,0.000284,2]
[314928585,1708677038521,-293.62,0.000284,2]
[314928586,1708677040903,-765.50174,0.0002829,10]
[314928587,1708677041018,-4.71826,0.0002829,10]
[314928588,1708677041028,-49990.530767,0.000284,2]
[314928594,1708677042557,-307.098972,0.000284,2]
[314928595,1708677042675,-20615.96599189,0.000284,2]
[314928596,1708677042685,-1353.58241711,0.00028449,2]
[314928597,1708677042694,-1007.72,0.00028505,2]
[314928598,1708677042703,-153.0,0.00028515,2]
[314928599,1708677042712,-165.0,0.00028515,2]
[314928600,1708677042722,-500.0,0.00028547,2]
[314928601,1708677042731,-436.23459534,0.00028562,4]
[314928602,1708677042741,-420.15,0.00028586,2]
[314928603,1708677042750,-158.15,0.00028597,2]
[314928604,1708677042759,-1353.58241711,0.00028657,2]
[314928605,1708677042769,-1007.72,0.00028664,2]
[314928606,1708677042777,-230.85332866,0.00028764,7]
[314928607,1708677042786,-541.50659466,0.00028764,7]
[314928608,1708677042796,-537.7637006,0.00028764,7]
[314928609,1708677042805,-268.8818503,0.00028764,7]
[314928610,1708677042815,-1000.0,0.00028764,7]
[314928611,1708677042824,-155.0,0.0002877,2]
[314928612,1708677042833,-1353.58241711,0.00028793,2]
[314928613,1708677042843,-2000.0,0.000288,2]
[314928614,1708677042852,-150.0,0.000288,2]
[314928615,1708677042862,-150.0,0.000288,2]
[314928616,1708677042871,-500.0,0.00028821,2]
[314928617,1708677042881,-1007.72,0.00028822,2]
[314928618,1708677042892,-436.23459534,0.00028823,4]
[314928619,1708677042902,-633.19597941,0.00028899,2]
[314928620,1708677042911,-6176.89054794,0.000289,2]
[314928622,1708677042923,-1638.73163814,0.000289,2]
[314928624,1708677042935,-7831.40175769,0.000289,2]
[314928627,1708677042946,-2698.97605623,0.000289,2]
[314928628,1708677042955,-186.32277197,0.00028921,2]
[314928629,1708677042964,-215.4029315,0.00028921,2]
[314928630,1708677042973,-2882.05783553,0.00028922,2]
[314928631,1708677042985,-5865.70937712,0.00028922,2]
[314928633,1708677045502,-4071.5,0.00028922,2]
[314928636,1708677045563,-524.11636991,0.00028922,2]
[314928641,1708677045626,-553.56974129,0.00028922,2]
[314928642,1708677045805,-6336.46767406,0.00028922,2]
[314928643,1708677045864,-5950.03124079,0.00028922,2]
[314928644,1708677045876,-4261.69337769,0.00028922,2]
[314928645,1708677045922,-3324.887267,0.00028922,2]
[314928930,1708677334044,208.0,0.00023046,2]
[314928931,1708677385599,-202.4393114,0.00024042,2]
[314928932,1708677385640,-1049.28297181,0.00024043,2]
[314928933,1708677385660,-501.49,0.00024846,2]
[314928934,1708677385740,-403.12771679,0.00026168,2]
[314928936,1708677558017,155.83185969,0.00026144,2]
[314928939,1708677602980,137.0551685,0.00026144,2]
[314928949,1708678226727,501.49,0.00024425,2]
[314928957,1708678231706,-9.24,0.00024425,2]
[314928959,1708678231715,-208.0,0.00025152,2]
[314928960,1708678231725,-150.0,0.0002611,2]
[314928961,1708678231734,-150.0,0.00026143,2]
[314928962,1708678231743,-300.0,0.00026143,2]
[314928963,1708678231753,-150.0,0.00026143,2]
[314928964,1708678231762,-150.0,0.00026144,2]
[314928965,1708678231772,-150.0,0.00026144,2]
[314928966,1708678231781,-150.0,0.00026144,2]
[314928967,1708678231790,-150.0,0.00026144,2]
[314928968,1708678231799,-150.0,0.00026144,2]
[314928969,1708678231808,-150.0,0.00026144,2]
[314928970,1708678231817,-150.0,0.00026144,2]
[314928971,1708678231827,-150.0,0.00026144,2]
[314928972,1708678231842,-150.0,0.00026144,2]
[314928973,1708678231851,-150.0,0.00026144,2]
[314928974,1708678231861,-150.0,0.00026144,2]
[314928975,1708678231871,-150.0,0.00026144,2]
[314928976,1708678231881,-150.0,0.00026144,2]
[314928977,1708678231891,-150.0,0.00026144,2]
[314928978,1708678231903,-150.0,0.00026144,2]
[314928979,1708678231916,-150.0,0.00026144,2]
[314928980,1708678231926,-150.0,0.00026144,2]
[314928981,1708678231936,-150.0,0.00026144,2]
[314928982,1708678231946,-150.0,0.00026144,2]
[314928983,1708678231955,-150.0,0.00026144,2]
[314928984,1708678231965,-150.0,0.00026144,2]
[314928985,1708678231975,-150.0,0.00026144,2]
[314928986,1708678231984,-150.0,0.00026144,2]
[314928987,1708678231995,-150.0,0.00026144,2]
[314928988,1708678232006,-150.0,0.00026144,2]
[314928989,1708678232016,-150.0,0.00026144,2]
[314928990,1708678232026,-150.0,0.00026144,2]
[314928991,1708678232037,-150.0,0.00026144,2]
[314928992,1708678232048,-150.0,0.00026144,2]
[314928993,1708678232058,-150.0,0.00026144,2]
[314928994,1708678232068,-150.0,0.00026144,2]
[314928995,1708678232078,-150.0,0.00026144,2]
[314928996,1708678232090,-150.0,0.00026144,2]
[314928997,1708678232101,-202.77578058,0.00026144,2]
[314928998,1708678232111,-1440.53228321,0.00026168,2]
[314928999,1708678232122,-1835.99,0.0002621,2]
[314929000,1708678232132,-1804.24,0.00026244,2]
[314929001,1708678232141,-1794.79,0.00026304,2]
[314929002,1708678232151,-332.74,0.00026304,2]
[314929003,1708678232161,-499.99,0.00026304,2]
[314929004,1708678232172,-712.0,0.00026322,2]
[314929005,1708678232182,-721.05,0.00026322,2]
[314929006,1708678232191,-1781.07,0.00026414,2]
[314929007,1708678232201,-4621.65,0.00026565,2]
[314929008,1708678232211,-1039.91,0.00026661,2]
[314929009,1708678232220,-510.73,0.00026689,2]
[314929010,1708678232231,-1782.59,0.00026689,2]
[314929011,1708678232241,-200.0,0.00026709,2]
[314929012,1708678232252,-2000.0,0.00026709,2]
[314929013,1708678232262,-512.0,0.0002677,2]
[314929014,1708678232271,-288.0,0.00026856,2]
[314929015,1708678232280,-150.7,0.00026881,2]
[314929016,1708678232290,-155.0,0.00026886,2]
[314929017,1708678232299,-250.0,0.00026888,2]
[314929018,1708678232310,-815.65,0.00026888,2]
[314929019,1708678232319,-23880.0,0.00026888,2]
[314929020,1708678232328,-23592.47,0.00026888,2]
[314929021,1708678232338,-1353.99,0.0002695,2]
[314929022,1708678232348,-217.25,0.00026951,2]
[314929023,1708678232358,-150.7,0.00027021,2]
[314929024,1708678232367,-150.7,0.00027161,2]
[314929025,1708678232377,-200.0,0.00027254,2]
[314929026,1708678232386,-1809.26,0.00027258,2]
[314929027,1708678232395,-150.7,0.00027301,2]
[314929028,1708678232404,-12125.0,0.00027396,2]
[314929029,1708678232413,-169.06102653,0.00027397,2]
[314929030,1708678232425,-150.0,0.00027397,7]
[314929031,1708678232435,-150.0,0.00027397,7]
[314929032,1708678232444,-166.05,0.00027397,2]
[314929033,1708678232453,-150.7,0.00027441,2]
[314929034,1708678232463,-1402.66352003,0.0002748,2]
[314929035,1708678232472,-1785.43,0.00027508,2]
[314929036,1708678232482,-512.0,0.0002752,2]
[314929037,1708678232492,-150.7,0.00027581,2]
[314929038,1708678232501,-166.05,0.00027635,2]
[314929039,1708678232514,-150.0,0.00027644,7]
[314929040,1708678232523,-150.0,0.00027644,7]
[314929041,1708678232533,-150.7,0.00027721,2]
[314929042,1708678232542,-1402.66352003,0.00027806,2]
[314929043,1708678232551,-878.7332,0.00027816,2]
[314929044,1708678232561,-150.7,0.00027862,2]
[314929045,1708678232570,-1806.94,0.00027868,2]
[314929046,1708678232583,-166.05,0.00027872,2]
[314929047,1708678232593,-150.0,0.0002789,7]
[314929048,1708678232604,-1402.66352003,0.00027958,2]
[314929049,1708678232614,-721.05,0.00027966,2]
[314929050,1708678232625,-150.0,0.00027993,2]
[314929051,1708678232636,-302.68511697,0.00028,2]
[314929052,1708678232646,-31359.32163531,0.00028,2]
[314929053,1708678232671,-2238.58117672,0.00028,2]
[314929054,1708678232682,-5260.31913334,0.00028,2]
[314929055,1708678232694,-404.79464981,0.00028,2]
[314929056,1708678232706,-3193.40605018,0.00028,2]
[314929057,1708678232718,-12700.0,0.00028,2]
[314929058,1708678232738,-10762.35817355,0.00028,2]
[314929059,1708678232749,-20391.37557804,0.00028,2]
[314929060,1708678232761,-102589.72067615,0.00028,2]
[314929061,1708678232772,-1814.03066159,0.00028,2]
[314929062,1708678232784,-302.19696592,0.00028,2]
[314929063,1708678232796,-284.49703418,0.00028,2]
[314929064,1708678232808,-21734.20088016,0.00028,2]
[314929065,1708678233902,-359.27642216,0.00025151,2]
[314929066,1708678233914,-162.70028315,0.00028,2]
[314929067,1708678233968,-61059.61323905,0.00028,2]
[314929068,1708678234120,-1875.38731659,0.00028,2]
[314929069,1708678234131,-1934.24120179,0.00028,2]
[314929070,1708678234147,-1592.29409451,0.00028,2]
[314929156,1708678241060,-200.0,0.00027687,2]